bitfinex-derivatives/quotes_ETHF0:USTF0_20250912
["timestamp","ask_amount","ask_price","bid_price","bid_amount"]
[1757684384255,0.4907,4509.9,4509.8,1.29437794]
[1757684384449,0.0665,4510.0,4509.9,0.7076]
[1757684384655,0.0665,4510.0,4509.9,1.51610793]
[1757684384842,0.227,4510.4,4510.3,0.7076]
[1757684385042,0.227,4510.4,4510.3,0.99797794]
[1757684385242,3.2078,4510.6,4510.5,0.1184]
[1757684385443,3.4348,4510.6,4510.5,1.11637794]
[1757684385648,3.6309,4510.6,4510.5,1.41277794]
[1757684386155,3.9041,4510.6,4510.5,0.7076]
[1757684386550,3.6095,4510.6,4510.5,0.826]
[1757684386852,3.4039,4510.6,4510.5,0.826]
[1757684387046,3.4039,4510.6,4510.5,1.4293312]
[1757684387555,3.2078,4510.6,4510.5,1.4293312]
[1757684389061,0.0665,4510.8,4510.7,0.7076]
[1757684389256,0.0665,4510.8,4510.7,1.3109312]
[1757684389453,0.7628,4510.8,4510.7,1.3109312]
[1757684390553,0.0665,4510.8,4510.7,1.31097172]
[1757684391056,0.0665,4510.8,4510.7,5.31097172]
[1757684391751,3.2078,4511.2,4511.1,0.7076]
[1757684392064,3.2078,4511.2,4511.1,1.31097172]
[1757684392453,0.9233,4511.6,4511.5,0.5009]
[1757684392653,0.9233,4511.6,4511.5,1.10427172]
[1757684392858,0.9233,4511.6,4511.5,0.80787172]
[1757684393156,0.9233,4511.6,4511.5,0.60337172]
[1757684393349,0.9233,4511.6,4511.5,1.10427172]
[1757684394659,3.4348,4511.9,4511.8,0.7076]
[1757684394859,3.4348,4511.9,4511.8,1.31097172]
[1757684395060,3.2078,4511.9,4511.8,1.31097172]
[1757684395456,3.2078,4511.9,4511.8,5.31097172]
[1757684395755,0.0664,4512.1,4512.0,0.826]
[1757684396059,0.0664,4512.1,4512.0,1.42937172]
[1757684396455,0.4907,4513.1,4513.0,0.4112]
[1757684396649,0.4907,4513.1,4513.0,1.31097172]
[1757684396949,0.1961,4513.1,4513.0,1.42937172]
[1757684397562,3.9041,4513.1,4513.0,0.80787172]
[1757684399172,3.9041,4513.1,4513.0,0.60337172]
[1757684399461,0.6873,4511.9,4511.8,0.7136]
[1757684399660,0.6873,4511.9,4511.8,0.2074]
[1757684399867,0.3948,4511.8,4511.7,0.2074]
[1757684400061,0.6873,4511.8,4511.7,0.2074]
[1757684400357,0.6873,4511.8,4511.4,0.3118]
[1757684400358,0.8079,4511.5,4511.4,0.2074]
[1757684401164,0.6873,4511.5,4511.4,0.7136]
[1757684401558,0.8079,4511.5,4511.4,0.2074]
[1757684402061,0.5154,4511.5,4511.0,0.1184]
[1757684402268,0.5154,4511.5,4511.1,0.2074]
[1757684402269,0.6873,4511.2,4511.1,0.2074]
[1757684402970,3.4103,4511.3,4511.2,0.3118]
[1757684403170,3.8951,4511.3,4511.2,0.4018]
[1757684403476,0.5154,4511.0,4510.9,0.2074]
[1757684403766,0.8079,4511.0,4510.9,0.2074]
[1757684404663,0.8079,4511.0,4510.9,0.5192]
[1757684404860,0.6873,4511.0,4510.9,0.7136]
[1757684405066,0.8079,4511.0,4510.9,0.4018]
[1757684405263,0.8079,4511.0,4510.5,0.3118]
[1757684405574,0.6873,4510.1,4510.0,0.7136]
[1757684406366,0.2925,4510.4,4510.0,0.5179]
[1757684406565,0.6873,4510.4,4510.3,0.4018]
[1757684406766,0.5154,4510.0,4509.9,0.5192]
[1757684406963,0.8079,4510.0,4509.9,0.5192]
[1757684407466,0.8079,4510.0,4509.4,0.227]
[1757684408271,0.8079,4510.0,4509.9,0.2074]
[1757684408467,3.2078,4510.2,4509.9,0.4018]
[1757684408663,0.6873,4510.0,4509.9,0.4018]
[1757684408864,3.5003,4510.2,4509.9,0.4018]
[1757684409064,0.6873,4510.0,4509.9,0.7136]
[1757684409972,3.6026,4510.2,4510.1,0.7136]
[1757684410167,3.8951,4510.2,4510.1,0.7136]
[1757684411169,0.1871,4511.0,4510.2,0.3118]
[1757684411170,3.5003,4510.7,4510.2,0.3118]
[1757684411364,0.0665,4511.0,4510.7,0.3118]
[1757684411572,0.0665,4511.0,4510.9,0.7136]
[1757684411772,0.0665,4511.0,4510.9,1.00895384]
[1757684412769,0.7538,4511.0,4510.9,1.00895384]
[1757684412973,0.8744,4511.0,4510.9,0.29535384]
[1757684413168,0.5819,4511.0,4510.9,0.29728428]
[1757684413365,0.7538,4511.0,4510.9,1.01088428]
[1757684414181,0.2025,4509.6,4509.5,1.0207]
[1757684414374,0.2025,4509.6,4509.5,1.35407199]
[1757684414566,3.2078,4510.2,4509.6,0.3118]
[1757684414769,3.8951,4510.2,4510.1,0.7136]
[1757684414964,3.6026,4510.2,4510.1,1.01097199]
[1757684415280,0.6873,4510.7,4510.6,0.2074]
[1757684415476,0.6873,4510.7,4510.6,0.29737199]
[1757684416880,0.6873,4510.7,4510.2,0.3118]
[1757684417079,3.8951,4510.3,4510.2,0.2074]
[1757684417280,3.8951,4510.3,4510.2,0.50474287]
[1757684418079,3.8951,4510.3,4510.2,0.81654287]
[1757684418273,3.8951,4510.3,4510.2,1.01094287]
[1757684418468,3.2078,4510.3,4510.2,1.01094287]
[1757684419079,3.7028,4510.3,4510.2,1.01094287]
[1757684419475,0.0665,4511.0,4510.6,0.4018]
[1757684419676,0.5615,4511.0,4510.9,0.7136]
[1757684419976,0.269,4511.0,4510.9,1.01094287]
[1757684421374,0.269,4511.0,4510.9,0.50474287]
[1757684421375,0.8079,4511.0,4510.9,0.50474287]
[1757684421580,0.8079,4511.0,4510.9,0.29734287]
[1757684422478,1.0349,4511.0,4510.1,0.3118]
[1757684422672,0.6873,4510.3,4510.2,1.01088409]
[1757684424281,0.6873,4510.3,4510.2,0.29728409]
[1757684424482,0.9143,4510.3,4510.2,0.29728409]
[1757684425685,0.6873,4510.3,4510.2,0.29728409]
[1757684426081,0.2025,4509.1,4509.0,0.6353]
[1757684426380,0.2025,4509.1,4509.0,0.8297]
[1757684427782,3.4103,4509.6,4509.5,0.8297]
[1757684428280,3.6026,4509.6,4509.5,0.8297]
[1757684428678,3.9055,4509.6,4509.5,0.8297]
[1757684429187,3.2078,4509.6,4509.5,0.8297]
[1757684429380,3.2078,4510.1,4510.0,0.8238]
[1757684430482,3.2078,4510.6,4510.5,0.8238]
[1757684430880,3.6147,4510.6,4510.5,0.8238]
[1757684431280,3.2078,4511.3,4510.6,0.3057]
[1757684431484,3.2078,4511.9,4511.3,0.3057]
[1757684431681,3.2078,4511.9,4511.8,0.6986]
[1757684432078,3.4192,4511.9,4511.8,0.6986]
[1757684432384,0.4069,4511.7,4511.6,0.3057]
[1757684432584,0.4069,4511.7,4511.6,0.4975]
[1757684432781,0.7098,4511.7,4511.2,0.227]
[1757684432983,0.4069,4510.8,4510.7,0.4975]
[1757684433184,0.3029,4511.3,4510.8,0.3057]
[1757684433185,3.2078,4511.3,4510.8,0.3057]
[1757684433375,3.2078,4511.3,4511.2,0.6986]
[1757684434188,3.4192,4511.3,4511.2,0.6986]
[1757684435185,3.2078,4511.3,4511.2,0.6986]
[1757684435387,3.7126,4511.9,4511.8,0.6986]
[1757684435681,3.9081,4511.9,4511.6,0.3057]
[1757684435882,0.4069,4511.7,4511.6,0.6986]
[1757684436586,0.7098,4511.7,4511.0,0.2912]
[1757684436779,0.7098,4511.7,4511.1,0.3057]
[1757684437586,0.4069,4511.2,4511.1,0.3057]
[1757684437886,0.7098,4511.2,4511.1,0.3057]
[1757684438084,0.7098,4511.2,4511.1,0.59950373]
[1757684439378,0.7098,4511.2,4511.1,0.29380373]
[1757684439782,0.4069,4511.2,4511.1,0.48559106]
[1757684439982,0.4069,4511.2,4511.1,0.79129106]
[1757684440488,0.4069,4511.2,4511.1,0.99239106]
[1757684440886,0.0664,4511.9,4511.8,0.6986]
[1757684441088,0.0664,4511.9,4511.8,0.99239106]
[1757684441287,0.7098,4512.9,4512.8,0.4975]
[1757684441489,0.7098,4512.9,4512.8,0.79129106]
[1757684441689,0.2114,4512.9,4512.8,0.99239106]
[1757684442190,3.2078,4513.2,4513.1,0.3057]
[1757684442392,3.2078,4513.2,4513.1,0.59949106]
[1757684443092,3.5107,4513.2,4513.1,0.29379106]
[1757684443397,0.3029,4512.9,4512.2,0.3057]
[1757684443593,3.2078,4512.4,4512.3,0.59886731]
[1757684443794,3.5107,4512.4,4512.3,0.29316731]
[1757684444285,0.0664,4512.8,4512.5,0.1252]
[1757684444484,0.0664,4512.8,4512.7,0.3057]
[1757684444698,0.0664,4512.8,4512.7,0.59880378]
[1757684444894,0.0664,4512.8,4512.7,4.59880378]
[1757684446596,0.0664,4512.8,4512.7,7.80630316]
[1757684447187,3.2078,4513.7,4512.7,0.59850316]
[1757684447393,0.3029,4513.1,4512.4,0.148]
[1757684447593,0.3029,4513.1,4512.5,0.2928127]
[1757684447795,0.3029,4513.1,4512.5,0.4180127]
[1757684447998,3.2078,4513.2,4512.8,0.3057]
[1757684448296,3.2078,4513.2,4513.1,0.3057]
[1757684449897,3.5107,4513.8,4513.1,0.3057]
[1757684450101,3.7377,4513.8,4513.3,0.3057]
[1757684450296,3.2078,4513.8,4513.1,0.3057]
[1757684450493,3.2078,4513.8,4513.3,0.3057]
[1757684450793,3.2078,4513.8,4513.0,0.1252]
[1757684450794,3.2078,4513.8,4513.6,0.3057]
[1757684450994,3.2742,4513.8,4513.6,0.3057]
[1757684451200,0.0664,4513.8,4513.7,0.3057]
[1757684451497,0.3693,4513.8,4513.5,0.1252]
[1757684451708,0.3029,4513.7,4513.5,0.3057]
[1757684451890,0.3029,4513.7,4513.0,0.4309]
[1757684452400,0.3029,4513.7,4513.0,0.3057]
[1757684452601,0.3029,4513.2,4512.5,0.4309]
[1757684452798,0.3029,4513.2,4512.6,0.51934944]
[1757684452996,0.3029,4513.2,4512.6,0.227]
[1757684453497,3.2078,4513.3,4513.1,0.3057]
[1757684453695,0.0664,4513.8,4513.1,0.3057]
[1757684454096,3.2078,4513.6,4513.1,0.3057]
[1757684454298,3.2078,4513.6,4513.0,0.1252]
[1757684454602,3.2078,4513.6,4513.1,0.3057]
[1757684454800,3.2078,4513.6,4513.0,0.227]
[1757684454801,0.0638,4513.5,4513.0,0.227]
[1757684454997,0.3029,4513.4,4513.0,0.3522]
[1757684455198,0.3029,4513.4,4513.2,0.3057]
[1757684455393,3.2078,4513.6,4513.1,0.3057]
[1757684455700,3.5107,4513.6,4513.2,0.3057]
[1757684455911,3.2078,4513.6,4513.5,0.4309]
[1757684456396,3.2078,4513.6,4513.5,0.3057]
[1757684457402,3.2078,4514.1,4513.5,0.41773019]
[1757684457703,3.5107,4515.2,4514.1,0.3057]
[1757684458003,3.5107,4515.2,4514.3,0.3116]
[1757684458300,3.5107,4515.2,4514.4,0.29250979]
[1757684458301,0.2959,4515.0,4514.4,0.29250979]
[1757684458499,0.2959,4514.9,4514.5,0.29250979]
[1757684458803,0.2959,4515.1,4514.5,0.4305]
[1757684459002,3.4348,4515.2,4514.6,0.3116]
[1757684459209,0.2959,4514.9,4514.2,3.2078]
[1757684459499,0.2959,4514.9,4514.3,0.29257356]
[1757684459702,0.1204,4514.5,4513.7,0.3116]
[1757684460001,0.1204,4514.5,4513.1,0.3116]
[1757684460002,0.2959,4513.9,4513.1,0.3116]
[1757684460191,0.2959,4513.4,4513.2,0.29263199]
[1757684460501,3.2078,4513.5,4513.0,0.1189]
[1757684460690,3.4348,4514.0,4513.2,0.3116]
[1757684460899,0.2959,4513.3,4513.0,0.4305]
[1757684461102,0.2959,4513.3,4513.0,0.1189]
[1757684461297,0.59661953,4513.2,4512.2,0.3116]
[1757684461498,3.5037,4512.6,4512.4,0.60451462]
[1757684461704,3.2078,4512.6,4512.5,0.60451462]
[1757684462300,3.5037,4512.6,4512.5,0.60451462]
[1757684462512,3.2078,4512.6,4512.5,0.60451462]
[1757684462907,3.5037,4512.6,4512.5,0.60451462]
[1757684463109,3.2078,4512.6,4512.5,0.60451462]
[1757684463403,3.80464389,4512.6,4512.5,0.72341462]
[1757684463608,3.2078,4513.1,4513.0,0.1189]
[1757684463808,3.2078,4513.7,4513.1,0.3116]
[1757684464012,0.2959,4513.5,4513.2,0.29028192]
[1757684464208,0.89285466,4513.4,4512.5,0.3116]
[1757684464506,3.2078,4512.6,4512.4,0.3116]
[1757684464700,0.59714453,4512.5,4512.4,0.3116]
[1757684465815,0.59714453,4512.5,4512.2,0.3116]
[1757684465999,3.2078,4512.6,4512.5,0.4305]
[1757684466196,3.80513097,4512.6,4512.5,0.4305]
[1757684466404,7.80513097,4512.6,4511.7,0.3116]
[1757684466609,3.2078,4512.1,4511.6,0.3116]
[1757684466802,3.2078,4512.1,4511.3,0.228]
[1757684466803,0.59733097,4512.0,4511.3,0.228]
[1757684467003,0.59733097,4512.0,4511.6,0.3116]
[1757684467708,0.59733097,4512.0,4511.3,0.228]
[1757684467899,0.59733097,4512.0,4511.6,0.3116]
[1757684468207,3.2078,4513.2,4511.9,0.3116]
[1757684468407,3.2078,4513.2,4512.3,0.3116]
[1757684469202,0.2959,4513.5,4512.8,3.2078]
[1757684469410,0.231,4513.7,4513.1,0.3116]
[1757684471005,3.2078,4513.8,4513.1,0.3116]
[1757684471206,0.2959,4514.5,4513.6,0.3116]
[1757684471509,0.5269,4514.9,4513.9,0.3116]
[1757684471714,0.5269,4514.9,4514.1,0.3116]
[1757684472016,0.231,4514.9,4514.1,0.3116]
[1757684472313,3.2078,4514.6,4514.0,0.231]
[1757684472501,0.3597,4514.5,4513.5,0.1189]
[1757684472706,0.3597,4514.5,4511.5,0.1189]
[1757684472707,0.2959,4513.9,4513.1,0.231]
[1757684472905,3.2078,4513.5,4513.1,0.231]
[1757684473107,3.2997,4513.5,4512.5,31.922]
[1757684473313,3.2997,4513.5,4512.0,0.1189]
[1757684473314,3.2078,4512.9,4512.4,0.5426]
[1757684473516,0.2959,4512.8,4512.4,0.5426]
[1757684473812,0.2959,4512.8,4512.5,0.3116]
[1757684474011,3.2078,4512.9,4512.4,0.231]
[1757684474203,0.2959,4512.8,4512.0,0.231]
[1757684474405,3.2078,4512.4,4512.1,0.3116]
[1757684474606,3.2078,4512.4,4512.0,0.3499]
[1757684474810,0.2959,4512.7,4512.1,0.3116]
[1757684475413,3.2078,4512.4,4512.1,0.3116]
[1757684475607,3.2078,4512.4,4512.0,0.231]
[1757684475813,3.5037,4512.4,4511.7,3.4388]
[1757684476014,3.5037,4512.4,4511.8,0.3116]
[1757684476209,3.2078,4512.4,4512.0,0.1189]
[1757684476408,3.2078,4513.7,4512.3,0.3116]
[1757684476616,0.2959,4514.1,4513.3,3.2078]
[1757684476811,0.2959,4514.1,4513.4,0.28663994]
[1757684477005,0.2959,4514.1,4513.5,0.28663994]
[1757684477208,0.2959,4514.2,4513.6,0.28663994]
[1757684477411,3.2078,4514.4,4513.8,0.3116]
[1757684477720,0.2959,4514.3,4513.9,0.28663994]
[1757684478014,3.2078,4514.4,4514.0,0.28663994]
[1757684478226,3.2078,4514.4,4514.1,0.28663994]
[1757684478514,0.2959,4514.3,4514.2,0.28663994]
[1757684480219,5.12035142,4514.3,4513.0,0.3499]
[1757684480414,3.2078,4513.9,4513.1,0.28656261]
[1757684480615,0.59345142,4513.8,4513.2,0.28656261]
[1757684480814,3.2078,4513.9,4513.3,0.59816261]
[1757684481119,0.0664,4513.7,4513.6,0.3116]
[1757684481308,0.0664,4513.7,4513.6,0.59816261]
[1757684482415,0.0664,4513.7,4513.6,0.59814242]
[1757684482714,3.2078,4514.6,4513.6,4.82914242]
[1757684482915,3.2078,4514.1,4513.7,0.28654242]
[1757684483117,0.2959,4513.9,4513.8,0.28654242]
[1757684483717,0.2959,4513.8,4513.0,3.3267]
[1757684483914,0.59336196,4513.7,4513.1,0.2865498]
[1757684484224,0.2959,4513.9,4513.0,3.2078]
[1757684484225,0.59336196,4513.6,4513.3,0.3116]
[1757684484424,0.2959,4513.5,4513.4,0.28655678]
[1757684485026,0.2959,4513.5,4513.4,0.59815678]
[1757684485620,0.2959,4513.5,4513.4,0.28655678]
[1757684485920,0.5269,4514.0,4513.5,0.3116]
[1757684486125,0.59333605,4513.9,4513.1,0.3116]
[1757684486321,0.5269,4514.0,4513.2,0.28653973]
[1757684486625,0.59332776,4513.9,4513.3,0.28653973]
[1757684486815,3.7347,4514.0,4513.4,0.28653973]
[1757684486816,0.88922776,4513.8,4513.4,0.28653973]
[1757684487011,0.59332776,4513.7,4513.0,3.3267]
[1757684487318,0.59332776,4513.7,4513.2,0.3116]
[1757684487526,3.2078,4514.0,4513.5,0.1189]
[1757684487723,3.2078,4514.0,4513.7,0.3116]
[1757684488018,0.0664,4514.3,4514.0,0.1204]
[1757684488219,0.0664,4514.3,4514.1,0.28654773]
[1757684488422,0.0664,4514.3,4514.2,0.59644773]
[1757684488625,0.0664,4514.3,4514.2,3.80424773]
[1757684489017,0.0664,4514.3,4514.2,4.03524773]
[1757684489317,0.0664,4514.3,4514.2,4.03524991]
[1757684489719,0.3129,4514.3,4514.2,3.72534991]
[1757684490020,4.3129,4514.3,4514.2,0.28654991]
[1757684490227,4.84068552,4514.3,4513.0,0.4288]
[1757684490419,3.2078,4513.7,4513.0,0.1189]
[1757684490620,0.61916552,4513.6,4513.1,0.3099]
[1757684490822,0.61916552,4513.6,4513.5,0.4303]
[1757684491121,0.61916552,4513.6,4513.0,0.4288]
[1757684491824,0.61916552,4513.6,4513.0,0.1189]
[1757684492018,0.61916552,4513.6,4513.1,0.3099]
[1757684492218,0.61916552,4513.6,4513.5,0.1204]
[1757684492617,0.6250687,4513.9,4513.5,0.1204]
[1757684492819,0.6250687,4513.8,4513.6,0.3099]
[1757684493016,0.6250687,4513.7,4513.6,0.3099]
[1757684493228,0.6250687,4513.7,4513.1,0.3099]
[1757684493424,0.6250687,4513.6,4513.0,0.1189]
[1757684493624,0.8019687,4513.5,4513.1,0.3099]
[1757684493831,0.6250687,4513.4,4513.0,0.1189]
[1757684494232,0.6250687,4513.3,4513.0,0.1189]
[1757684494423,0.6250687,4513.2,4513.1,0.3099]
[1757684495123,0.6250687,4513.6,4513.1,0.3099]
[1757684495530,0.6250687,4513.6,4513.0,0.1189]
[1757684495730,0.6250687,4513.6,4513.1,0.3099]
[1757684495927,0.6250687,4513.6,4513.0,0.1189]
[1757684496126,0.6250687,4513.6,4513.1,0.3099]
[1757684496436,0.6250687,4513.6,4513.0,0.6598]
[1757684496725,0.6250687,4513.6,4512.8,0.3099]
[1757684496726,0.1769,4513.1,4512.8,0.3099]
[1757684496922,0.6250687,4513.0,4512.7,32.15]
[1757684497122,3.2078,4513.2,4512.7,32.15]
[1757684497319,0.62530916,4513.1,4512.8,0.3099]
[1757684497521,0.62530916,4513.1,4512.7,32.15]
[1757684497522,0.62530916,4513.0,4512.7,32.15]
[1757684497719,0.62530916,4512.9,4512.8,0.3099]
[1757684497923,0.62530916,4513.1,4512.8,0.3099]
[1757684498125,0.39876,4512.9,4512.8,0.3099]
[1757684498330,1.02406916,4512.9,4512.8,0.3099]
[1757684498539,0.39876,4512.9,4512.8,0.3099]
[1757684499226,0.99665,4514.1,4513.5,0.1204]
[1757684499428,1.62229006,4513.9,4513.6,0.5409]
[1757684499632,0.39868,4513.8,4513.7,0.3099]
[1757684500833,0.3987,4513.6,4513.5,0.4303]
[1757684501034,0.3987,4513.6,4513.5,0.6613]
[1757684501330,1.99321,4514.3,4513.5,0.6613]
[1757684501331,0.99662,4514.2,4513.6,0.3099]
[1757684501532,0.39869,4513.7,4513.6,0.3099]
[1757684502228,4.20432,4514.7,4513.7,0.3099]
[1757684502438,0.99657,4514.4,4514.0,3.2078]
[1757684502637,0.39863,4514.3,4514.2,0.1416]
[1757684502825,0.39863,4514.3,4514.2,0.41975593]
[1757684503328,0.39863,4514.3,4514.2,0.27815593]
[1757684503527,0.71153,4514.3,4514.2,0.27815593]
[1757684504726,0.71153,4514.3,4514.2,0.50915593]
[1757684505827,0.71153,4514.3,4514.2,3.85915593]
[1757684505828,0.39863,4514.3,4514.2,3.85915593]
[1757684506339,0.71153,4514.3,4514.2,3.71695593]
[1757684507638,0.39863,4514.3,4514.2,3.71695593]
[1757684507830,0.3129,4514.8,4514.2,7.85915593]
[1757684508028,0.1817,4515.0,4514.4,0.1422]
[1757684508228,0.39863,4514.3,4514.2,3.2078]
[1757684508439,0.39863,4514.3,4514.2,3.8589215]
[1757684509434,0.25633,4514.4,4514.3,0.1422]
[1757684509738,0.99648,4514.8,4514.3,0.2779215]
[1757684510037,0.4282,4514.5,4514.4,0.2779215]
[1757684510332,0.4282,4514.5,4514.4,3.4857215]
[1757684510934,0.4946,4515.0,4514.5,0.39861]
[1757684511143,0.3986,4514.7,4514.6,0.5079215]
[1757684511838,0.3986,4514.7,4514.6,0.50763676]
[1757684512239,0.7115,4514.7,4514.6,0.27763676]
[1757684512442,0.7115,4514.7,4514.6,0.50763676]
[1757684514141,0.3129,4514.7,4514.6,0.50763676]
[1757684514345,0.39859,4514.8,4514.6,0.50763676]
[1757684514541,0.71149,4514.8,4514.7,0.27763676]
[1757684515346,0.39859,4514.9,4514.7,4.27763676]
[1757684515543,0.39859,4514.9,4514.8,0.27763676]
[1757684515937,0.1153,4515.0,4514.8,0.27763676]
[1757684515938,0.1153,4515.0,4514.8,0.67621676]
[1757684516139,0.99625,4515.9,4514.9,7.71543676]
[1757684516442,0.83183,4515.5,4515.4,3.2078]
[1757684516648,0.83183,4515.5,4515.4,3.71543676]
[1757684516847,0.51893,4515.5,4515.4,3.71543676]
[1757684517146,0.83183,4515.5,4515.4,3.71543676]
[1757684517342,0.1204,4515.5,4515.4,3.71543676]
[1757684517642,0.4282,4516.0,4515.4,7.71543676]
[1757684517844,0.4282,4516.0,4515.9,3.2078]
[1757684518044,0.4282,4516.0,4515.9,3.48543676]
[1757684518245,0.4282,4516.0,4515.9,3.71543676]
[1757684519760,0.4282,4516.0,4515.9,3.48543676]
[1757684520055,4.4282,4516.0,4515.9,0.23]
[1757684520757,0.4415,4515.5,4515.4,3.2078]
[1757684520950,0.4415,4515.5,4515.4,0.50696652]
[1757684521848,0.4415,4515.5,4514.5,31.909]
[1757684521849,4.4415,4515.5,4514.5,31.909]
[1757684522050,0.3177,4514.9,4514.6,0.5033067]
[1757684522250,0.3177,4514.9,4514.6,0.23]
[1757684523056,0.1238,4515.0,4514.6,0.23]
[1757684523760,0.3177,4514.9,4514.6,0.23]
[1757684524252,0.1238,4515.0,4514.6,0.23]
[1757684524457,0.3177,4514.9,4514.6,0.23]
[1757684524658,0.1238,4515.0,4514.8,3.2288]
[1757684524858,0.1238,4515.0,4514.9,0.23]
[1757684525158,0.3841,4515.2,4514.9,0.23]
[1757684525555,0.3177,4515.1,4514.9,0.23]
[1757684526055,0.0664,4515.2,4514.9,0.23]
[1757684526251,0.3177,4515.1,4514.9,0.23]
[1757684526453,0.0664,4515.2,4515.0,0.021]
[1757684526658,0.0664,4515.2,4515.1,0.251]
[1757684527057,0.3177,4515.9,4515.1,4.251]
[1757684527255,0.3177,4515.9,4515.8,3.2078]
[1757684527451,0.3177,4515.9,4515.8,3.4378]
[1757684529859,0.1238,4517.0,4515.8,7.4378]
[1757684529860,0.433,4516.5,4515.8,7.4378]
[1757684530162,0.3177,4516.4,4516.3,3.2078]
[1757684530463,0.3177,4516.4,4516.3,3.4378]
[1757684531560,0.4415,4517.0,4516.3,3.4378]
[1757684531860,0.4415,4517.0,4516.9,3.2078]
[1757684532054,0.4415,4517.0,4516.9,3.4378]
[1757684532559,1.07889856,4517.0,4516.9,3.4378]
[1757684533356,0.4415,4517.0,4516.9,3.4378]
[1757684533560,1.07644282,4517.0,4516.9,3.2078]
[1757684533758,1.07644282,4517.0,4516.9,3.4378]
[1757684534058,1.07644282,4517.0,4516.9,0.50224942]
[1757684534059,5.07644282,4517.0,4516.9,0.50224942]
[1757684534366,5.07644282,4517.0,4516.9,0.27224942]
[1757684534567,5.07644282,4517.0,4516.9,4.942e-05]
[1757684534866,5.07644282,4517.0,4516.4,3.2078]
[1757684535166,0.4415,4516.5,4516.4,3.2078]
[1757684535367,1.07644282,4516.5,4516.4,3.4378]
[1757684535560,1.07644282,4516.5,4515.9,3.2078]
[1757684535758,0.3177,4516.2,4516.0,0.5187]
[1757684535958,0.3177,4516.4,4516.0,0.5187]
[1757684536159,0.63524159,4516.3,4516.0,0.23]
[1757684536360,0.3177,4516.4,4516.0,0.23]
[1757684536972,0.1238,4516.5,4516.0,0.23]
[1757684537169,0.63525042,4516.4,4516.0,0.23]
[1757684537354,0.3177,4516.8,4516.1,0.2887]
[1757684537561,0.1238,4516.5,4516.4,3.2078]
[1757684537767,0.4415,4516.5,4516.4,3.4378]
[1757684538256,1.07688274,4516.5,4516.4,3.4378]
[1757684539360,0.3177,4516.5,4516.4,3.4378]
[1757684539666,0.3177,4516.5,4516.4,3.7265]
[1757684540358,0.3177,4516.5,4516.4,3.9004]
[1757684540558,0.3177,4516.5,4516.4,4.1304]
[1757684540766,0.5305,4516.5,4516.4,4.1304]
[1757684541670,0.8527,4516.5,4516.4,3.6429]
[1757684541857,0.8527,4516.5,4516.4,3.4368]
[1757684543070,1.48613069,4516.5,4516.4,3.4368]
[1757684543564,1.48613069,4516.5,4516.4,3.2078]
[1757684543760,1.48613069,4516.5,4516.4,0.229]
[1757684544463,1.48613069,4516.5,4516.4,0.4341]
[1757684544961,1.48613069,4516.5,4516.4,0.229]
[1757684545372,1.48613069,4516.5,4516.4,0.4341]
[1757684545579,1.48613069,4516.5,4516.4,0.6329]
[1757684546171,1.48613069,4516.5,4516.4,0.229]
[1757684546765,1.48613069,4516.5,4516.4,0.4341]
[1757684548673,1.48613069,4516.5,4516.4,0.9222]
[1757684549177,1.36233069,4516.5,4516.4,0.9222]
[1757684549367,1.48483069,4516.5,4516.4,0.4341]
[1757684549874,1.48483069,4516.5,4516.4,0.229]
[1757684550579,0.1225,4516.0,4515.9,3.2078]
[1757684550768,0.8375,4516.0,4515.9,3.4368]
[1757684550970,0.8375,4516.0,4515.9,3.4183]
[1757684551171,0.8375,4516.0,4515.9,3.8577]
[1757684551475,0.8375,4516.0,4515.9,4.147]
[1757684553090,0.5079,4516.4,4516.3,0.7102]
[1757684553476,1.14174364,4516.4,4516.3,0.7102]
[1757684553684,0.63384364,4516.4,4516.3,0.7102]
[1757684553979,0.211,4517.0,4516.9,0.4209]
[1757684554185,0.211,4517.0,4516.9,0.9392]
[1757684554186,0.5079,4517.0,4516.9,0.9392]
[1757684554379,0.2969,4517.4,4516.9,0.9392]
[1757684554585,0.5079,4517.2,4517.1,0.4209]
[1757684554882,1.14172113,4517.2,4517.1,0.7102]
[1757684555073,1.34882113,4517.2,4516.9,0.229]
[1757684555269,0.715,4517.0,4516.9,0.4395]
[1757684555483,1.47132113,4517.0,4516.9,0.4395]
[1757684555981,1.47132113,4517.0,4516.9,0.6499]
[1757684556182,1.47132113,4517.0,4516.9,0.9392]
[1757684556482,0.63382113,4517.0,4516.9,0.9392]
[1757684556679,0.63382113,4517.4,4516.9,0.6499]
[1757684556883,0.715,4517.3,4517.2,0.2105]
[1757684557182,1.34882113,4517.3,4517.2,0.4395]
[1757684557782,1.34882113,4517.3,4517.2,0.229]
[1757684558282,0.1225,4517.0,4516.8,3.2078]
[1757684558484,1.34882113,4516.9,4516.8,3.2078]
[1757684558688,0.84482113,4516.9,4516.8,4.147]
[1757684558982,0.63382113,4516.9,4516.8,4.147]
[1757684559184,0.2969,4517.4,4516.9,0.2893]
[1757684559381,0.715,4517.4,4517.3,0.4209]
[1757684559581,1.34453364,4517.4,4517.3,0.6499]
[1757684563489,1.34453364,4517.4,4517.3,0.4395]
[1757684563687,1.34453364,4517.4,4517.3,0.229]
[1757684565692,0.4181,4516.9,4516.8,3.2078]
[1757684565895,0.715,4516.1,4516.0,3.4183]
[1757684566089,0.715,4516.1,4516.0,3.8567]
[1757684566287,0.715,4516.1,4516.0,4.146]
[1757684566890,0.5079,4516.1,4516.0,4.146]
[1757684567082,0.715,4516.2,4516.1,0.7102]
[1757684567589,0.715,4516.2,4516.1,0.4209]
[1757684568194,0.715,4516.2,4516.1,0.2105]
[1757684568492,0.715,4516.2,4516.0,3.4358]